bitfinex/quotes_BTCUSD_20250115
["timestamp","ask_amount","ask_price","bid_price","bid_amount"]
[1736967032770,0.37157465,99369.0,99368.0,3.4116954]
[1736967032972,0.36357465,99369.0,99368.0,3.4146954]
[1736967033344,0.36457465,99369.0,99368.0,3.4146954]
[1736967033564,0.36257465,99369.0,99368.0,3.4116954]
[1736967033766,0.36357465,99369.0,99368.0,3.4146954]
[1736967033968,0.36457465,99369.0,99368.0,3.4146954]
[1736967034489,0.36357465,99369.0,99368.0,3.4116954]
[1736967034691,0.36457465,99369.0,99368.0,3.4146954]
[1736967039647,0.36357465,99369.0,99368.0,3.4146954]
[1736967039844,0.36257465,99369.0,99368.0,3.4116954]
[1736967040058,0.36357465,99369.0,99368.0,3.41377711]
[1736967040206,0.36457465,99369.0,99368.0,3.41977711]
[1736967040627,0.51277465,99369.0,99368.0,1.72277197]
[1736967041001,0.61277465,99369.0,99368.0,1.67951797]
[1736967041220,0.61277465,99369.0,99368.0,1.61913697]
[1736967041943,0.61277465,99369.0,99368.0,1.55875597]
[1736967042351,0.61277465,99369.0,99368.0,1.51850197]
[1736967042905,0.51277465,99369.0,99368.0,1.47824797]
[1736967043154,0.61277465,99369.0,99368.0,1.41786697]
[1736967043687,0.36457465,99369.0,99368.0,1.41786697]
[1736967043903,0.36457465,99369.0,99368.0,1.51857017]
[1736967044104,0.46457465,99369.0,99368.0,1.61791617]
[1736967044304,0.46457465,99369.0,99368.0,1.91982617]
[1736967047941,0.46457465,99369.0,99368.0,1.87967585]
[1736967048152,0.36457465,99369.0,99368.0,1.87967585]
[1736967048957,0.36457465,99369.0,99368.0,1.91982685]
[1736967049827,0.36457465,99369.0,99368.0,0.91449861]
[1736967050383,0.36457465,99369.0,99368.0,0.41449887]
[1736967051241,0.46457465,99369.0,99368.0,0.41449887]
[1736967051642,0.46457465,99369.0,99368.0,0.26855987]
[1736967051868,0.46457465,99369.0,99368.0,0.24843287]
[1736967052656,0.46457465,99369.0,99368.0,0.20587758]
[1736967053537,0.46457465,99369.0,99368.0,0.16562358]
[1736967053708,0.46457465,99369.0,99368.0,0.14549658]
[1736967053911,0.46457465,99369.0,99368.0,0.080512]
[1736967054146,0.46457465,99369.0,99368.0,0.040256]
[1736967054753,0.46457465,99369.0,99368.0,2e-06]
[1736967055035,0.47813467,99369.0,99368.0,2e-06]
[1736967055242,0.37813467,99369.0,99368.0,2e-06]
[1736967055911,0.01,99365.0,99364.0,4.5e-07]
[1736967056116,0.36253615,99365.0,99364.0,4.5e-07]
[1736967056331,0.361278,99365.0,99364.0,4.5e-07]
[1736967056560,0.361278,99365.0,99364.0,8e-07]
[1736967056770,0.361278,99365.0,99362.0,1.00532824]
[1736967056771,0.351282,99363.0,99362.0,1.00532824]
[1736967057185,0.351292,99358.0,99357.0,1.77960515]
[1736967057295,0.351292,99358.0,99357.0,2.78493339]
[1736967058136,0.351292,99358.0,99357.0,2.86013339]
[1736967058566,0.37247528,99358.0,99357.0,2.86013339]
[1736967058762,0.37347528,99358.0,99357.0,1.12383569]
[1736967059182,0.37347528,99358.0,99357.0,1.1320619]
[1736967059626,0.37447528,99358.0,99357.0,1.1330619]
[1736967061746,0.37447528,99358.0,99357.0,1.13100531]
[1736967062372,0.37447528,99358.0,99357.0,1.23172171]
[1736967062605,0.37347528,99358.0,99357.0,1.23172171]
[1736967062849,0.37347528,99358.0,99357.0,1.23072171]
[1736967063022,0.37447528,99358.0,99357.0,1.23172171]
[1736967063585,0.37347528,99358.0,99357.0,1.23072171]
[1736967064145,0.37247528,99358.0,99357.0,1.23072171]
[1736967064298,0.37347528,99358.0,99357.0,1.23072171]
[1736967064525,0.37447528,99358.0,99357.0,1.23172171]
[1736967065225,0.37447528,99358.0,99357.0,1.2337819]
[1736967067022,0.37447528,99358.0,99357.0,1.20804043]
[1736967068856,0.37532978,99358.0,99357.0,1.20804043]
[1736967069701,0.01,99343.0,99342.0,0.0782]
[1736967069911,0.01,99337.0,99336.0,0.0782]
[1736967070339,0.361334,99337.0,99336.0,0.1789281]
[1736967071207,0.361334,99337.0,99336.0,0.17897827]
[1736967071621,0.370334,99337.0,99336.0,0.17897827]
[1736967072172,0.377334,99337.0,99336.0,0.17897827]
[1736967073899,0.377334,99337.0,99336.0,0.40386827]
[1736967074101,0.38872057,99337.0,99336.0,0.40386827]
[1736967074369,0.38872057,99337.0,99336.0,0.32566827]
[1736967075381,0.37272057,99337.0,99336.0,0.28540027]
[1736967075628,0.37272057,99337.0,99336.0,0.18667359]
[1736967075820,0.57272057,99337.0,99336.0,0.16339856]
[1736967076005,0.01,99323.0,99322.0,0.08674661]
[1736967076143,0.361363,99323.0,99322.0,0.08674661]
[1736967076379,0.461363,99323.0,99322.0,0.08674661]
[1736967076579,0.461363,99323.0,99309.0,1.10608684]
[1736967076580,0.361389,99310.0,99309.0,1.10608684]
[1736967076780,0.361389,99310.0,99309.0,1.11102124]
[1736967077857,0.370389,99310.0,99309.0,1.11102124]
[1736967078716,0.376389,99310.0,99309.0,1.11102124]
[1736967079794,0.38777446,99310.0,99309.0,1.11102124]
[1736967081203,0.38777446,99310.0,99309.0,1.21524816]
[1736967081611,0.38777446,99310.0,99309.0,2.71704303]
[1736967083104,0.38777446,99310.0,99309.0,1.11281611]
[1736967083755,0.38777446,99310.0,99309.0,0.10748787]
[1736967084160,0.38777446,99310.0,99309.0,0.60748787]
[1736967084609,0.37877446,99310.0,99309.0,0.60748787]
[1736967085020,0.37377446,99310.0,99309.0,0.60748787]
[1736967085191,0.37277446,99310.0,99309.0,0.60748787]
[1736967085369,0.37377446,99310.0,99309.0,0.60748787]
[1736967085567,0.37477446,99310.0,99309.0,0.60748787]
[1736967085783,0.37377446,99310.0,99309.0,0.60748787]
[1736967086009,0.37477446,99310.0,99309.0,0.60748787]
[1736967086625,0.37477446,99310.0,99309.0,0.10748787]
[1736967087074,0.37477446,99310.0,99309.0,0.10255347]
[1736967087459,0.37477446,99310.0,99309.0,1.60255347]
[1736967087867,0.37477446,99310.0,99309.0,0.10255347]
[1736967088093,0.37477446,99310.0,99309.0,0.10748609]
[1736967088340,0.37477446,99310.0,99309.0,0.10255347]
[1736967088543,0.37477446,99310.0,99309.0,1.10788171]
[1736967088727,0.37477446,99310.0,99309.0,1.11281433]
[1736967090730,0.37477446,99310.0,99309.0,1.19251433]
[1736967090936,0.37477446,99310.0,99309.0,1.29674125]
[1736967091141,0.22477446,99310.0,99309.0,1.29674125]
[1736967091346,0.22477446,99310.0,99309.0,2.79674125]
[1736967092179,0.37477446,99310.0,99309.0,2.79674125]
[1736967095726,0.36477446,99310.0,99309.0,2.79674125]
[1736967095940,0.37477446,99310.0,99309.0,2.79674125]
[1736967096629,0.37477446,99310.0,99309.0,1.29674125]
[1736967097474,0.37477446,99310.0,99309.0,1.79674125]
[1736967098117,0.36477446,99310.0,99309.0,1.79674125]
[1736967098320,0.37477446,99310.0,99309.0,1.79674125]
[1736967100533,0.37477446,99310.0,99309.0,3.29674125]
[1736967105679,0.21477446,99310.0,99309.0,3.29674125]
[1736967105871,0.0108547,99337.0,99312.0,0.0774]
[1736967106073,0.0118703,99336.0,99327.0,0.10422692]
[1736967106226,0.0118703,99336.0,99329.0,0.124]
[1736967106426,0.201341,99334.0,99333.0,1.5]
[1736967106630,0.201341,99334.0,99333.0,1.68662948]
[1736967107052,0.211341,99334.0,99333.0,1.68662948]
[1736967107690,0.211341,99334.0,99333.0,1.69278948]
[1736967108133,0.211341,99334.0,99333.0,1.69378948]
[1736967108451,0.220341,99334.0,99333.0,0.19378948]
[1736967108593,0.370341,99334.0,99333.0,0.18762948]
[1736967108842,0.377341,99334.0,99333.0,0.19478948]
[1736967109808,0.367341,99334.0,99333.0,0.19478948]
[1736967110052,0.377341,99334.0,99333.0,0.19478948]
[1736967112730,0.377341,99334.0,99333.0,0.18862948]
[1736967112934,0.377341,99334.0,99333.0,0.19478948]
[1736967117264,0.3781959,99334.0,99333.0,0.19478948]
[1736967117813,0.3781959,99334.0,99333.0,0.09056256]
[1736967119181,0.3681959,99334.0,99333.0,0.19478948]
[1736967119370,0.2181959,99334.0,99333.0,0.19478948]
[1736967120404,0.0168549,99334.0,99333.0,1.69478948]
[1736967121879,0.0168549,99334.0,99333.0,1.74218948]
[1736967122323,0.0168549,99334.0,99333.0,1.77327332]
[1736967122523,0.0008547,99336.0,99335.0,0.1276]
[1736967122734,0.0008547,99336.0,99335.0,0.35291076]
[1736967122946,0.0008547,99336.0,99335.0,0.35793063]
[1736967123151,0.0008547,99336.0,99335.0,1.85793063]
[1736967123772,0.0008547,99336.0,99335.0,1.76793063]
[1736967124003,0.0048547,99336.0,99335.0,1.77409063]
[1736967124406,0.0068547,99336.0,99335.0,1.77409063]
[1736967124783,0.0028547,99336.0,99335.0,1.76793063]
[1736967124984,0.0068547,99336.0,99335.0,1.77409063]
[1736967125187,0.0028547,99336.0,99335.0,1.74300679]
[1736967125561,0.0148547,99336.0,99335.0,0.24300679]
[1736967125759,0.0048547,99336.0,99335.0,0.24300679]
[1736967125967,0.0158547,99336.0,99335.0,0.24300679]
[1736967126243,0.0158547,99336.0,99335.0,1.74300679]
[1736967126368,0.0048547,99336.0,99335.0,1.74300679]
[1736967127184,0.0138547,99336.0,99335.0,1.74400679]
[1736967127592,0.2151907,99336.0,99335.0,1.74400679]
[1736967129099,0.0138547,99336.0,99335.0,1.74400679]
[1736967133424,0.0138547,99336.0,99335.0,1.69660679]
[1736967133641,0.0238547,99336.0,99335.0,1.69660679]
[1736967133803,0.03458415,99336.0,99335.0,1.69660679]
[1736967135738,0.0138547,99336.0,99335.0,1.69660679]
[1736967138031,0.0138547,99336.0,99335.0,2.19660679]
[1736967138487,0.0138547,99336.0,99335.0,2.19680679]
[1736967138908,0.0238547,99336.0,99335.0,2.19680679]
[1736967139696,0.0138547,99336.0,99335.0,2.19680679]
[1736967140482,0.0138547,99336.0,99335.0,0.69680679]
[1736967140916,0.0138547,99336.0,99335.0,2.19680679]
[1736967141732,0.0138547,99336.0,99335.0,2.22792131]
[1736967142560,0.0138547,99336.0,99335.0,2.27502131]
[1736967143448,0.0008547,99336.0,99335.0,2.27402131]
[1736967143826,0.0088547,99336.0,99335.0,2.27502131]
[1736967144024,0.0088547,99336.0,99335.0,2.27402131]
[1736967144259,0.0068547,99336.0,99335.0,2.27402131]
[1736967144439,0.0128547,99336.0,99335.0,2.27502131]
[1736967144655,0.0148547,99336.0,99335.0,2.27502131]
[1736967146788,0.0148547,99336.0,99335.0,2.26866131]
[1736967146997,0.0148547,99336.0,99335.0,2.27502131]
[1736967147300,0.2161907,99336.0,99335.0,2.27502131]
[1736967148022,0.2161907,99336.0,99335.0,2.26866131]
[1736967148232,0.2161907,99336.0,99335.0,2.27502131]
[1736967151475,0.2161907,99336.0,99335.0,2.26866131]
[1736967151630,0.2161907,99336.0,99335.0,2.14136131]
[1736967151856,0.2261907,99336.0,99335.0,2.11024679]
[1736967152059,0.2261907,99336.0,99335.0,2.11660679]
[1736967152257,0.2161907,99336.0,99335.0,2.11660679]
[1736967152863,0.2141907,99336.0,99335.0,0.61660679]
[1736967153127,0.2161907,99336.0,99335.0,0.61660679]
[1736967153464,0.2041907,99336.0,99335.0,0.61560679]
[1736967153680,0.2021907,99336.0,99335.0,0.61560679]
[1736967153868,0.2111907,99336.0,99335.0,0.61660679]
[1736967154273,0.2211907,99336.0,99335.0,0.61660679]
[1736967154488,0.2261907,99336.0,99335.0,0.61760679]
[1736967159450,0.2261907,99336.0,99335.0,0.61124679]
[1736967163372,0.2261907,99336.0,99335.0,2.11124679]
[1736967163758,0.2261907,99336.0,99335.0,0.61124679]
[1736967165221,0.2261907,99336.0,99335.0,2.11124679]
[1736967166282,0.2261907,99336.0,99335.0,0.61124679]
[1736967171037,0.2261907,99336.0,99335.0,0.69234679]
[1736967171426,0.2161907,99336.0,99335.0,0.69234679]
[1736967173249,0.2261907,99336.0,99335.0,0.69234679]
[1736967173674,0.2261907,99336.0,99335.0,2.19234679]
[1736967174096,0.2161907,99336.0,99335.0,2.19234679]
[1736967174303,0.0148547,99336.0,99335.0,2.19234679]
[1736967176463,0.0148547,99336.0,99335.0,2.22346765]
[1736967180370,0.0148547,99336.0,99335.0,2.66030565]
[1736967180798,0.0008547,99337.0,99336.0,0.09]
[1736967180975,0.0008547,99337.0,99336.0,1.35727602]
[1736967181171,0.0008547,99337.0,99336.0,1.36223521]
[1736967181494,0.0008547,99337.0,99336.0,2.86223521]
[1736967182063,0.0038547,99337.0,99336.0,2.86223521]
[1736967183656,0.0008547,99337.0,99336.0,2.86223521]
[1736967184147,0.0008547,99337.0,99336.0,2.96223521]
[1736967185489,0.0008547,99337.0,99336.0,2.96423521]
[1736967185708,0.1999942,99362.0,99351.0,0.0804]
[1736967185914,0.1999942,99362.0,99360.0,0.10422692]
[1736967186037,0.1999942,99362.0,99361.0,0.0866]
[1736967186245,0.1999942,99362.0,99361.0,1.29683486]
[1736967186452,0.1999942,99362.0,99361.0,2.80168182]
[1736967187022,0.20110021,99362.0,99361.0,2.80168182]
[1736967187544,0.20110021,99362.0,99361.0,3.30168182]
[1736967188253,0.20110021,99362.0,99361.0,3.29548182]
[1736967188466,0.20110021,99362.0,99361.0,3.30168182]
[1736967189109,0.20010021,99362.0,99361.0,3.30168182]
[1736967189303,0.20310021,99362.0,99361.0,3.30168182]
[1736967191919,0.20310021,99362.0,99361.0,3.29548182]
[1736967192125,0.20310021,99362.0,99361.0,3.30168182]
[1736967196312,0.00310601,99362.0,99361.0,3.40082546]
[1736967197085,0.00010601,99362.0,99361.0,3.63312154]
[1736967197407,0.00210601,99362.0,99361.0,3.43183554]
[1736967198047,0.00510601,99362.0,99361.0,3.43183554]
[1736967198231,0.00110601,99362.0,99361.0,3.43183554]
[1736967198610,0.00310601,99362.0,99361.0,3.43183554]
[1736967200699,0.00310601,99362.0,99361.0,3.42563554]
[1736967200816,0.00310601,99362.0,99361.0,3.62175554]
[1736967201841,0.00110601,99362.0,99361.0,3.62175554]
[1736967202327,0.0012545,99369.0,99368.0,0.09]
[1736967202530,0.0012545,99369.0,99368.0,0.355837]
[1736967202733,0.0012545,99369.0,99368.0,0.36060489]
[1736967202940,0.0012545,99369.0,99368.0,1.86060489]
[1736967203843,0.0012545,99369.0,99368.0,1.86160489]
[1736967204246,0.0012545,99369.0,99368.0,1.86260489]
[1736967204876,0.0012545,99369.0,99368.0,1.87297244]
[1736967213228,0.0012545,99369.0,99368.0,1.87909244]
[1736967216912,0.0012545,99369.0,99368.0,1.97909244]
[1736967218254,0.0012545,99369.0,99368.0,1.97809244]
[1736967218570,0.0012545,99369.0,99368.0,2.47909244]
[1736967218780,0.0012545,99369.0,99368.0,2.48009244]
[1736967223183,0.0008557,99393.0,99392.0,0.34]
[1736967223444,0.00096173,99393.0,99392.0,1.95693288]
[1736967223709,0.00096173,99393.0,99392.0,2.16270643]
[1736967223984,0.00096173,99393.0,99392.0,3.66493974]
[1736967224421,0.014874,99429.0,99414.0,0.4142]
[1736967224637,0.014874,99429.0,99414.0,1.71691408]
[1736967224856,0.00135656,99415.0,99414.0,1.72964542]
[1736967225059,0.00135656,99415.0,99414.0,3.72964542]
[1736967225886,0.00535656,99415.0,99414.0,3.72964542]
[1736967226035,0.00535656,99415.0,99414.0,3.72352542]
[1736967226242,0.00535656,99415.0,99414.0,3.68084542]
[1736967226482,0.00635656,99415.0,99414.0,3.68084542]
[1736967226822,0.00635656,99415.0,99414.0,3.46831534]
[1736967227047,0.00635656,99415.0,99414.0,3.5241917]
[1736967227689,0.00135656,99415.0,99414.0,3.4180717]
[1736967227895,0.00135656,99415.0,99414.0,3.4241917]
[1736967228099,0.00235656,99415.0,99414.0,3.41758036]
[1736967228344,0.00135656,99415.0,99414.0,3.41758036]
[1736967228472,0.00335656,99415.0,99414.0,3.41758036]
[1736967228692,0.12685656,99415.0,99414.0,3.41758036]
[1736967228914,0.12485656,99415.0,99414.0,3.41758036]
[1736967229122,0.12685656,99415.0,99414.0,3.41758036]
[1736967229515,0.12485656,99415.0,99414.0,3.41758036]
[1736967230519,0.13524896,99415.0,99414.0,3.41758036]
[1736967230713,0.13724896,99415.0,99414.0,3.41758036]
[1736967230914,0.13824896,99415.0,99414.0,3.41758036]
[1736967231192,0.13824896,99415.0,99414.0,3.41146036]
[1736967231396,0.13524896,99415.0,99414.0,3.41750036]
[1736967231597,0.14024896,99415.0,99414.0,3.41850036]
[1736967231733,0.14424896,99415.0,99414.0,3.41850036]
[1736967232141,0.13924896,99415.0,99414.0,3.41750036]
[1736967232459,0.29424896,99415.0,99414.0,3.30823344]
[1736967232785,0.29424896,99415.0,99414.0,3.31427344]
[1736967233660,0.29424896,99415.0,99414.0,3.41246036]
[1736967233861,0.22824896,99415.0,99414.0,3.41246036]
[1736967234266,0.18074896,99415.0,99414.0,3.41246036]
[1736967234717,0.18074896,99415.0,99414.0,3.41850036]
[1736967234901,0.18074896,99415.0,99414.0,3.31427344]
[1736967235430,0.18074896,99415.0,99414.0,3.30823344]
[1736967236616,0.07824896,99415.0,99414.0,3.30823344]
[1736967236779,0.005,99415.0,99414.0,3.30823344]
[1736967237845,0.005,99415.0,99414.0,3.41246036]
[1736967238979,0.01542491,99415.0,99414.0,3.41246036]
[1736967239158,0.005,99415.0,99414.0,3.41246036]
[1736967247456,0.005,99415.0,99414.0,3.4142546]
[1736967247660,0.0058544,99415.0,99414.0,3.4142546]
[1736967251404,0.0058544,99415.0,99414.0,3.4202946]
[1736967252774,0.0058544,99415.0,99414.0,3.31002768]
[1736967254699,0.0058544,99415.0,99414.0,2.30469944]
[1736967255257,0.0058544,99415.0,99414.0,2.40892636]
[1736967256741,0.41294383,99417.0,99414.0,2.40892636]
[1736967256942,0.41294383,99417.0,99415.0,0.10422692]
[1736967257292,0.41294383,99417.0,99416.0,1.5]
[1736967257482,0.41294383,99417.0,99416.0,1.60422692]
[1736967257910,0.41794383,99417.0,99416.0,1.60422692]
[1736967258092,0.41794383,99417.0,99414.0,1.81002768]
[1736967258299,0.351176,99415.0,99414.0,1.74069592]
[1736967258539,0.399476,99415.0,99414.0,1.64783677]
[1736967258741,0.399476,99415.0,99414.0,1.58335088]
[1736967258939,0.399476,99415.0,99414.0,0.33551519]
[1736967258940,0.565476,99415.0,99414.0,0.33551519]
[1736967259197,0.565476,99415.0,99414.0,0.30651519]
[1736967259388,0.565476,99415.0,99414.0,0.27053519]
[1736967260007,0.57301449,99415.0,99414.0,0.16994519]
[1736967260254,0.58611168,99415.0,99414.0,0.16994519]
[1736967260432,0.23493568,99415.0,99414.0,0.17694519]
[1736967260643,0.43611168,99415.0,99414.0,0.15062519]
[1736967260846,0.43611168,99415.0,99414.0,0.15511703]
[1736967261003,0.43611168,99415.0,99414.0,0.09476103]
[1736967261430,0.43611168,99415.0,99414.0,0.07014919]
[1736967261611,0.43611168,99415.0,99414.0,0.05002919]
[1736967261996,0.43611168,99415.0,99414.0,0.00979119]
[1736967262621,0.1,99413.0,99412.0,4.3e-07]
[1736967262962,0.25125763,99413.0,99412.0,4.3e-07]
[1736967263166,0.1,99409.0,99408.0,0.39940543]
[1736967263325,0.1,99409.0,99408.0,0.4039108]
[1736967263916,0.1,99409.0,99408.0,0.3435538]
[1736967264116,0.1,99409.0,99408.0,0.3033158]
[1736967264405,0.10225761,99409.0,99408.0,0.3123158]
[1736967264536,0.101,99409.0,99408.0,1.8123158]
[1736967265105,0.402382,99408.0,99405.0,0.00018566]
[1736967265301,0.0012577,99407.0,99405.0,0.00018566]
[1736967266073,0.0012577,99407.0,99406.0,1.5]
[1736967266267,0.20244862,99408.0,99406.0,1.5]
[1736967266679,0.002,99407.0,99406.0,1.5]
[1736967266889,0.001,99407.0,99406.0,1.5]
[1736967267088,0.001,99407.0,99406.0,1.502]
[1736967267432,0.20244862,99408.0,99406.0,1.506]
[1736967267590,0.20344862,99408.0,99406.0,1.506]
[1736967267793,0.20444862,99408.0,99406.0,1.508]
[1736967268022,0.15,99407.0,99406.0,1.506]
[1736967268195,0.151,99407.0,99406.0,1.508]
[1736967268627,0.151,99407.0,99406.0,0.008]
[1736967268826,0.15225764,99407.0,99406.0,0.002]
[1736967269068,0.15225764,99407.0,99406.0,0.01]
[1736967269183,0.15325764,99407.0,99406.0,0.01]
[1736967269383,0.15225764,99407.0,99406.0,0.008]
[1736967269872,0.351195,99406.0,99405.0,0.00018566]
[1736967270114,0.351195,99406.0,99394.0,1.5]
[1736967270308,0.201217,99395.0,99394.0,1.5]
[1736967270466,0.351217,99395.0,99394.0,1.5]
[1736967272699,0.3640541,99395.0,99394.0,1.5]
[1736967273106,0.3650541,99395.0,99394.0,1.502]
[1736967273564,0.3660541,99395.0,99394.0,1.509]
[1736967277487,0.3660541,99395.0,99394.0,1.50896]
[1736967277488,0.2160541,99395.0,99394.0,1.50896]
[1736967277908,0.2160541,99395.0,99394.0,1.61318692]
[1736967278138,0.203217,99395.0,99394.0,1.73878692]
[1736967278360,0.002,99395.0,99394.0,1.73878692]
[1736967278566,0.002,99395.0,99394.0,1.74474692]
[1736967279328,0.001,99395.0,99394.0,1.74274692]
[1736967279703,0.001,99395.0,99394.0,1.74174692]
[1736967279921,0.201207,99400.0,99394.0,1.73874692]
[1736967280147,0.201207,99400.0,99395.0,0.10422692]
[1736967280363,0.402415,99400.0,99396.0,0.0797]
[1736967280566,0.402415,99400.0,99397.0,0.10422692]
[1736967280782,0.402415,99400.0,99399.0,1.5]
[1736967280994,0.402415,99400.0,99399.0,1.60422692]
[1736967281425,0.411415,99400.0,99399.0,1.60422692]
[1736967282412,0.402415,99400.0,99399.0,1.61018692]
[1736967282625,0.201178,99415.0,99399.0,1.61018692]
[1736967282626,0.201187,99410.0,99401.0,0.0797]
[1736967282835,0.20129289,99410.0,99405.0,0.0797]
[1736967283036,0.00010589,99410.0,99407.0,0.0797]
[1736967283267,0.00010589,99410.0,99409.0,1.5797]
[1736967283465,0.00010589,99410.0,99409.0,1.68392692]
[1736967283903,0.00910589,99410.0,99409.0,1.68392692]
[1736967284273,0.00010589,99410.0,99409.0,1.68392692]
[1736967284549,0.01510589,99410.0,99409.0,1.68592692]
[1736967289433,0.01510589,99410.0,99409.0,1.69188692]
[1736967290289,0.201186,99411.0,99409.0,1.68592692]
[1736967290486,0.201186,99411.0,99410.0,0.10422692]
[1736967290905,0.201186,99411.0,99409.0,1.58762]
[1736967291115,0.201186,99411.0,99410.0,0.00592]
[1736967291731,0.201186,99411.0,99409.0,1.5817]
[1736967291975,0.201186,99411.0,99410.0,0.00592]
[1736967292151,0.201186,99411.0,99410.0,0.11014692]
[1736967292152,0.21441558,99411.0,99410.0,0.11014692]
[1736967292959,0.023,99410.0,99409.0,1.5]
[1736967293104,0.023,99410.0,99409.0,1.50592]
[1736967294152,0.023,99410.0,99409.0,1.50692]
[1736967294549,0.21441558,99411.0,99409.0,1.50692]
[1736967294770,0.21441558,99411.0,99409.0,0.00692]
[1736967295171,0.21441558,99411.0,99410.0,1.5]
[1736967295809,0.21441558,99411.0,99410.0,1.50592]
[1736967296009,0.201186,99411.0,99410.0,1.69114692]
[1736967296185,0.202041,99411.0,99410.0,1.78879056]
[1736967296387,0.215041,99411.0,99410.0,1.78879056]
[1736967296609,0.206041,99411.0,99410.0,1.78879056]
[1736967296791,0.206041,99411.0,99410.0,1.80389645]
[1736967297047,0.211041,99411.0,99410.0,1.80489645]
[1736967297344,0.215041,99411.0,99410.0,1.80489645]
[1736967297662,0.206041,99411.0,99410.0,1.80389645]
[1736967299319,0.215041,99411.0,99410.0,1.80489645]
[1736967300627,0.009,99411.0,99410.0,1.80489645]
[1736967300836,0.210186,99411.0,99410.0,1.80489645]
[1736967301032,0.009,99411.0,99410.0,1.80489645]
[1736967302157,0.009,99411.0,99410.0,1.57226953]
[1736967302352,0.009,99411.0,99410.0,1.51610589]
[1736967303134,0.009,99411.0,99410.0,0.01610589]
[1736967303583,0.009,99411.0,99410.0,1.51610589]
[1736967303746,0.201182,99412.0,99410.0,1.51510589]
[1736967303951,0.17425749,99411.0,99410.0,0.02610589]
[1736967304149,0.24025749,99411.0,99410.0,8.9e-07]
[1736967304345,0.173,99411.0,99410.0,8.9e-07]
[1736967304600,0.17425758,99411.0,99410.0,8.9e-07]
[1736967304835,0.28645758,99411.0,99410.0,8.9e-07]
[1736967305037,0.2852,99411.0,99410.0,8.9e-07]
[1736967305174,0.2762,99411.0,99410.0,8.9e-07]
[1736967305388,0.15,99409.0,99406.0,0.0185]
[1736967306009,0.00125758,99408.0,99406.0,0.0185]
[1736967306612,0.00125758,99408.0,99406.0,0.0255]
[1736967306817,0.15,99407.0,99406.0,0.0255]
[1736967307026,0.15,99407.0,99406.0,0.0185]
[1736967307206,0.173,99407.0,99406.0,0.0185]
[1736967307360,0.173,99407.0,99406.0,0.0255]
[1736967308197,0.173,99407.0,99406.0,0.02729529]
[1736967309184,0.174,99407.0,99406.0,0.02529529]
[1736967310127,0.1870921,99407.0,99406.0,0.03129529]
[1736967312124,0.2273731,99407.0,99406.0,0.03129529]
[1736967312718,0.2043731,99407.0,99406.0,1.03662353]
[1736967313115,0.2043731,99407.0,99406.0,2.53662353]
[1736967313307,0.2043731,99407.0,99406.0,1.03662353]
[1736967315741,0.2043731,99407.0,99406.0,1.53662353]
[1736967316462,0.2043731,99407.0,99406.0,1.03662353]
[1736967318096,0.2273731,99407.0,99406.0,1.03662353]
[1736967322369,0.224195,99406.0,99405.0,0.1006321]
[1736967322583,0.374195,99406.0,99405.0,0.0402721]
[1736967323201,0.374195,99406.0,99405.0,3.21e-05]
[1736967323399,0.351205,99401.0,99399.0,1.00532824]
[1736967323642,0.351205,99401.0,99400.0,0.00060156]
[1736967325389,0.15,99400.0,99399.0,1.00532824]
[1736967325622,0.15,99398.0,99394.0,0.10246845]
[1736967325765,0.15125771,99398.0,99394.0,1.10779669]
[1736967325950,0.15,99398.0,99394.0,1.10779669]
[1736967326852,0.201217,99395.0,99394.0,1.10779669]
[1736967328447,0.201217,99395.0,99394.0,1.11679669]
[1736967328670,0.201217,99395.0,99394.0,1.11379669]
[1736967329111,0.202217,99395.0,99394.0,1.11079669]
[1736967329399,0.203217,99395.0,99394.0,1.11679669]
[1736967331721,0.2158644,99395.0,99394.0,1.11679669]
[1736967335134,0.2158644,99395.0,99394.0,1.09667469]
[1736967335135,0.3888644,99395.0,99394.0,1.09667469]
[1736967335334,0.351237,99385.0,99384.0,1.00532824]
[1736967335745,0.351237,99385.0,99384.0,1.10600984]
[1736967336523,0.351237,99385.0,99384.0,1.10700984]
[1736967336524,0.357237,99385.0,99384.0,1.10700984]
[1736967336749,0.366237,99385.0,99384.0,1.10700984]
[1736967338220,0.357237,99385.0,99384.0,1.10696984]
[1736967338420,0.351237,99385.0,99384.0,1.10596984]
[1736967338618,0.353237,99385.0,99384.0,2.61096984]
[1736967339227,0.353237,99385.0,99384.0,1.6056816]
[1736967339483,0.353237,99385.0,99384.0,0.1056816]
[1736967342076,0.353237,99385.0,99384.0,1.6056816]
[1736967342506,0.353237,99385.0,99384.0,1.57643239]
[1736967343154,0.36488203,99385.0,99384.0,0.05469924]
[1736967343570,0.36488203,99385.0,99384.0,1.55469924]
[1736967343983,0.36488203,99385.0,99384.0,1.55649474]
[1736967344188,0.35588203,99385.0,99384.0,1.55649474]
[1736967344782,0.35588203,99385.0,99384.0,2.56182298]
[1736967348687,0.35588203,99385.0,99384.0,1.06182298]
[1736967349326,0.35588203,99385.0,99384.0,2.56182298]
[1736967350357,0.34688203,99385.0,99384.0,2.56182298]
[1736967352712,0.34688203,99385.0,99384.0,1.06182298]
[1736967353219,0.33788203,99385.0,99384.0,2.56182298]
[1736967354054,0.32888203,99385.0,99384.0,2.56182298]
[1736967354193,0.32888203,99385.0,99384.0,1.06182298]
[1736967354411,0.201255,99376.0,99375.0,0.0772]
[1736967354817,0.201255,99376.0,99375.0,0.1778933]
[1736967355713,0.208255,99376.0,99375.0,0.1788933]
[1736967356125,0.217255,99376.0,99375.0,0.1788933]
[1736967358279,0.217255,99376.0,99375.0,1.6788933]
[1736967361483,0.217255,99376.0,99375.0,1.82982022]
[1736967363082,0.217255,99376.0,99375.0,1.83566022]
[1736967364099,0.217255,99376.0,99375.0,2.33566022]
[1736967364715,0.217255,99376.0,99375.0,2.32982022]
[1736967365058,0.217255,99376.0,99375.0,2.33566022]
[1736967365436,0.217255,99376.0,99375.0,0.83566022]
[1736967365862,0.208255,99376.0,99375.0,0.83566022]
[1736967366092,0.208255,99376.0,99375.0,2.33566022]
[1736967368717,0.208255,99376.0,99375.0,2.33745593]
[1736967370216,0.208255,99376.0,99375.0,2.36855956]
[1736967370217,0.016,99376.0,99375.0,2.36855956]
[1736967370429,0.016,99376.0,99375.0,2.36854999]
[1736967371262,0.016,99376.0,99375.0,2.33745593]
[1736967372007,0.016,99376.0,99375.0,2.36854351]
[1736967372409,0.016,99376.0,99375.0,2.33745593]
[1736967374078,0.217255,99376.0,99375.0,2.33745593]
[1736967374257,0.016,99376.0,99375.0,2.33745593]
[1736967375421,0.016,99376.0,99375.0,2.36851876]
[1736967375561,0.0008551,99384.0,99375.0,2.24461876]
[1736967375765,0.0008551,99384.0,99383.0,0.22862692]